bitfinex/quotes_BTCUSD_20250410
["timestamp","ask_amount","ask_price","bid_price","bid_amount"]
[1744294101586,0.2216,80988.0,80987.0,0.2593]
[1744294101740,0.34,81001.0,80994.0,0.012346]
[1744294101916,0.34,81001.0,80991.0,0.259287]
[1744294101917,0.012345,80998.0,80991.0,0.259287]
[1744294102100,0.012346,80992.0,80981.0,0.012348]
[1744294102303,0.246966,80983.0,80975.0,0.012349]
[1744294102506,0.246966,80983.0,80977.0,0.246983]
[1744294102507,0.246967,80983.0,80977.0,0.246983]
[1744294102710,0.13290182,80982.0,80975.0,0.246988]
[1744294102969,0.37987282,80982.0,80974.0,0.012349]
[1744294103142,0.4,80981.0,80980.0,0.012348]
[1744294103694,0.12055382,80995.0,80986.0,0.246955]
[1744294103695,0.34,80992.0,80986.0,0.246955]
[1744294103845,0.012346,80996.0,80988.0,0.012347]
[1744294104006,0.13289982,80995.0,80973.0,0.00076036]
[1744294104253,0.012347,80985.0,80978.0,0.012349]
[1744294104460,0.34,80994.0,80979.0,0.259325]
[1744294104662,0.12055382,80993.0,80985.0,0.012347]
[1744294104866,0.246939,80992.0,80985.0,0.259305]
[1744294105074,0.246969,80982.0,80976.0,0.246985]
[1744294105280,0.246969,80982.0,80975.0,0.012349]
[1744294105281,0.246945,80990.0,80982.0,0.246968]
[1744294105563,0.012347,80986.0,80972.0,0.259346]
[1744294105745,0.36751382,80985.0,80979.0,0.246974]
[1744294105913,0.12055382,80985.0,80980.0,0.246973]
[1744294106117,0.12055382,80985.0,80979.0,0.012348]
[1744294106118,0.13290082,80985.0,80979.0,0.259322]
[1744294106298,0.246964,80984.0,80979.0,0.012348]
[1744294106502,0.12055382,80983.0,80979.0,0.012348]
[1744294106704,0.34,80994.0,80987.0,0.012347]
[1744294106911,0.2216,81000.0,80998.0,0.012345]
[1744294107219,0.012347,80991.0,80984.0,0.012348]
[1744294107404,0.246934,80994.0,80986.0,0.012347]
[1744294107742,0.246934,80994.0,80973.0,0.000337]
[1744294107743,0.012348,80981.0,80973.0,0.000337]
[1744294107883,0.12055382,80980.0,80976.0,0.012349]
[1744294108097,0.22132,80979.0,80978.0,0.246979]
[1744294108292,0.246982,80978.0,80973.0,0.24775336]
[1744294108515,0.22132,80979.0,80978.0,0.012349]
[1744294108714,0.34187382,80979.0,80975.0,0.246988]
[1744294109106,0.012349,80975.0,80973.0,0.00076036]
[1744294109307,0.12055382,80974.0,80973.0,0.00076036]
[1744294109656,0.13290282,80974.0,80973.0,0.00076036]
[1744294110084,0.12055382,80974.0,80973.0,0.00076036]
[1744294110758,0.37989482,80974.0,80973.0,0.00076036]
[1744294110931,0.77989482,80974.0,80973.0,0.00076036]
[1744294112281,0.52055382,80974.0,80973.0,0.00076036]
[1744294113335,0.74191382,80974.0,80973.0,0.00076036]
[1744294113536,0.22136,80974.0,80973.0,0.01310936]
[1744294113739,0.012346,80992.0,80976.0,0.012349]
[1744294113965,0.012348,80981.0,80974.0,0.012349]
[1744294114138,0.12055382,80980.0,80977.0,0.012349]
[1744294114338,0.22136,80981.0,80980.0,0.246974]
[1744294114538,0.34191382,80981.0,80971.0,0.259351]
[1744294114744,0.12055382,80980.0,80977.0,0.246982]
[1744294114943,0.52055382,80980.0,80979.0,0.259325]
[1744294115167,0.22136,80981.0,80979.0,0.259325]
[1744294115168,0.22136,80981.0,80980.0,0.259322]
[1744294116660,0.259261,81000.0,80994.0,0.012346]
[1744294116879,0.36747282,80999.0,80995.0,0.246928]
[1744294117079,0.246919,80998.0,80994.0,0.259277]
[1744294117403,0.12055382,80998.0,80995.0,0.012346]
[1744294117545,0.22136,81003.0,81002.0,0.259252]
[1744294118207,0.22136,81003.0,80997.0,0.012346]
[1744294118208,0.246913,81000.0,80992.0,0.012346]
[1744294118533,0.58881882,81003.0,80996.0,0.246925]
[1744294118672,0.58881882,81003.0,80998.0,0.246919]
[1744294118673,0.22136,81003.0,80998.0,0.246919]
[1744294119012,0.24692,80998.0,80996.0,0.00042336]
[1744294119216,0.36747382,80998.0,80996.0,0.00042336]
[1744294119554,0.22136,81003.0,80996.0,0.01276936]
[1744294119813,0.22136,81003.0,80999.0,0.012345]
[1744294120042,0.22136,81003.0,81001.0,0.246908]
[1744294120248,0.259217,81013.0,80996.0,0.01276936]
[1744294120249,0.22136,81031.0,81024.0,0.012342]
[1744294120525,0.22136,81031.0,80996.0,0.00042336]
[1744294120526,0.246867,81016.0,81010.0,0.012344]
[1744294120762,0.246849,81021.0,81016.0,0.259206]
[1744294120898,0.22136,81031.0,81030.0,0.012341]
[1744294121100,1.27144,81043.0,81042.0,0.259124]
[1744294121306,0.22536,81049.0,81048.0,0.259105]
[1744294121505,0.004,81049.0,81048.0,0.259105]
[1744294121920,0.00412725,81049.0,81048.0,0.37965882]
[1744294122122,2.5e-07,81049.0,81048.0,0.71965882]
[1744294122362,2.5e-07,81049.0,81048.0,0.78269967]
[1744294122552,6.5e-07,81054.0,81053.0,0.599089]
[1744294122882,5e-08,81057.0,81056.0,0.61361985]
[1744294123016,5e-08,81057.0,81056.0,0.71963282]
[1744294123220,5e-08,81057.0,81056.0,0.599079]
[1744294123620,5e-08,81057.0,81053.0,0.012337]
[1744294123823,0.012337,81052.0,81038.0,0.012339]
[1744294124030,0.12055387,81057.0,81044.0,0.012338]
[1744294124227,0.12055387,81057.0,81040.0,0.00012725]
[1744294124228,0.12055382,81056.0,81040.0,0.00012725]
[1744294124427,0.246756,81052.0,81047.0,0.246768]
[1744294124651,0.01233605,81057.0,81044.0,0.012338]
[1744294124849,5e-08,81057.0,81053.0,0.246751]
[1744294125057,5e-08,81057.0,81056.0,0.246742]
[1744294125226,5e-08,81057.0,81056.0,0.599039]
[1744294125929,5e-08,81057.0,81056.0,0.71959282]
[1744294127016,5e-08,81057.0,81056.0,0.259039]
[1744294127212,5e-08,81057.0,81056.0,0.37959282]
[1744294127445,3e-07,81066.0,81065.0,0.61359085]
[1744294127577,3e-07,81066.0,81065.0,1.19294467]
[1744294128094,5e-07,81071.0,81070.0,0.599035]
[1744294128295,0.0001682,81096.0,81070.0,0.599035]
[1744294128296,1e-07,81081.0,81078.0,0.012333]
[1744294128618,0.0001682,81096.0,81089.0,0.27351485]
[1744294128619,3e-07,81090.0,81089.0,0.27351485]
[1744294128775,3e-07,81090.0,81089.0,0.37952782]
[1744294128980,0.00042463,81090.0,81089.0,0.37952782]
[1744294129202,0.00042463,81090.0,81089.0,0.258974]
[1744294129517,0.00042463,81090.0,81089.0,0.37952782]
[1744294130737,0.00042463,81090.0,81089.0,0.258974]
[1744294131133,0.00046463,81090.0,81089.0,0.258974]
[1744294131336,0.00046463,81090.0,81083.0,0.012333]
[1744294131695,0.00046463,81090.0,81083.0,0.246658]
[1744294131880,0.012332,81089.0,81084.0,0.258988]
[1744294132090,0.00046463,81090.0,81088.0,0.246644]
[1744294132288,0.00046463,81090.0,81089.0,0.01479848]
[1744294132492,0.00046463,81090.0,81089.0,0.13288582]
[1744294133290,3e-08,81091.0,81090.0,0.59897]
[1744294133495,0.00012722,81091.0,81090.0,0.73406467]
[1744294133769,0.00012722,81091.0,81090.0,0.59897]
[1744294133958,0.00012722,81091.0,81080.0,0.259]
[1744294134249,0.012332,81087.0,81079.0,0.012333]
[1744294134478,0.246646,81088.0,81082.0,0.012333]
[1744294134689,0.012332,81087.0,81081.0,0.246666]
[1744294134893,0.012333,81077.0,81072.0,0.246693]
[1744294135039,0.012335,81070.0,81065.0,0.246713]
[1744294135246,0.233454,81071.0,81064.0,0.012335]
[1744294135681,0.246704,81069.0,81065.0,0.25905]
[1744294135884,0.012337,81052.0,81026.0,0.0498]
[1744294136042,0.246753,81053.0,81049.0,0.012338]
[1744294136240,0.246753,81053.0,81046.0,0.012338]
[1744294136510,0.22112,81052.0,81031.0,0.01234]
[1744294136646,0.22112,81052.0,81031.0,0.259158]
[1744294136647,0.01234,81037.0,81031.0,0.259158]
[1744294136842,0.012338,81045.0,81037.0,0.01234]
[1744294137046,0.246785,81042.0,81036.0,0.259142]
[1744294137246,0.259124,81042.0,81037.0,0.246799]
[1744294137445,0.246789,81041.0,81037.0,0.246799]
[1744294137698,0.259124,81042.0,81038.0,0.246797]
[1744294137900,0.246789,81041.0,81036.0,0.00042433]
[1744294138077,0.259123,81043.0,81038.0,0.012339]
[1744294138286,0.012339,81042.0,81036.0,0.00042433]
[1744294138483,0.012339,81042.0,81037.0,0.01234]
[1744294138678,0.012338,81048.0,81043.0,0.246781]
[1744294138878,0.012338,81044.0,81039.0,0.012339]
[1744294139077,0.246795,81041.0,81037.0,0.246799]
[1744294139501,4e-05,81041.0,81038.0,0.246797]
[1744294139801,4e-05,81041.0,81040.0,0.012339]
[1744294140512,4e-05,81041.0,81039.0,0.246794]
[1744294140709,0.01234,81037.0,81036.0,0.00042433]
[1744294140915,0.53289382,81037.0,81036.0,0.00042433]
[1744294141416,0.4,81037.0,81036.0,0.00042433]
[1744294141741,0.4,81037.0,81036.0,0.01276433]
[1744294142060,4e-05,81041.0,81036.0,0.00042433]
[1744294142282,0.012339,81039.0,81036.0,0.00042433]
[1744294142534,0.40224,81037.0,81036.0,0.00042433]
[1744294142840,0.56799382,81037.0,81036.0,0.00042433]
[1744294143199,0.96799382,81037.0,81036.0,0.00042433]
[1744294143516,0.92279382,81037.0,81036.0,0.00042433]
[1744294143721,1.08143382,81037.0,81036.0,0.00042433]
[1744294143947,1.09377382,81037.0,81036.0,0.00042433]
[1744294144079,1.60160743,81037.0,81036.0,3.3e-07]
[1744294144265,1.50817382,81037.0,81036.0,3.3e-07]
[1744294145651,4e-05,81041.0,81039.0,0.246793]
[1744294145920,4e-05,81041.0,81040.0,0.012339]
[1744294146266,4e-05,81041.0,81040.0,0.13536056]
[1744294146869,4e-05,81041.0,81040.0,0.14990141]
[1744294147224,4e-05,81041.0,81040.0,0.48990141]
[1744294147399,4e-05,81041.0,81040.0,0.48743367]
[1744294147753,4e-05,81041.0,81040.0,0.90123367]
[1744294148025,4e-05,81041.0,81040.0,0.92424709]
[1744294149542,4e-05,81041.0,81040.0,0.90970624]
[1744294149714,0.233299,81041.0,81040.0,0.02301342]
[1744294149891,0.233299,81041.0,81037.0,0.01234]
[1744294149892,0.34151382,81041.0,81037.0,0.01234]
[1744294150093,0.012339,81040.0,81036.0,3.3e-07]
[1744294150300,0.01234,81037.0,81036.0,3.3e-07]
[1744294150504,0.47289382,81037.0,81036.0,3.3e-07]
[1744294150701,0.52269382,81037.0,81036.0,3.3e-07]
[1744294150907,0.52269382,81037.0,81005.0,0.0003362]
[1744294150908,0.012343,81017.0,81005.0,0.0003362]
[1744294151111,0.22092,81017.0,81010.0,0.012344]
[1744294151352,0.22092,81017.0,81014.0,0.012343]
[1744294151521,0.22092,81017.0,81015.0,0.26990715]
[1744294151845,0.22092,81026.0,81021.0,0.012342]
[1744294152007,0.22092,81026.0,81025.0,0.246837]
[1744294152224,0.22092,81026.0,81015.0,0.02304215]
[1744294152225,0.012342,81023.0,81016.0,0.012343]
[1744294152422,0.259188,81022.0,81021.0,0.02304215]
[1744294152628,0.37974182,81022.0,81012.0,0.259216]
[1744294152828,0.480096,81026.0,81008.0,0.02304215]
[1744294152829,0.012343,81012.0,81008.0,0.02304215]
[1744294153078,0.259233,81008.0,80968.0,0.4138]
[1744294153230,0.37978682,81008.0,80992.0,0.012346]
[1744294153430,0.8120795,81008.0,80978.0,0.012349]
[1744294153651,1.13418682,81008.0,81007.0,0.02350536]
[1744294153987,1.14872767,81008.0,81007.0,0.00046345]
[1744294154919,0.599277,80994.0,80993.0,0.02304191]
[1744294155119,0.599283,80992.0,80975.0,0.02304191]
[1744294155401,0.71983682,80992.0,80975.0,0.02304191]
[1744294155529,1.58132127,80992.0,80976.0,0.02304191]
[1744294155732,0.599332,80977.0,80976.0,0.02304191]
[1744294156072,1.99060582,80977.0,80976.0,0.02304191]
[1744294156839,0.012349,80976.0,80975.0,0.02304191]
[1744294157069,0.12055382,80976.0,80975.0,0.02346527]
[1744294157273,1.27072,80977.0,80975.0,0.00042336]
[1744294157473,0.012349,80976.0,80975.0,0.00042336]
[1744294157668,1.27072,80977.0,80975.0,0.01277236]
[1744294157879,1.27072,80977.0,80976.0,0.259335]
[1744294158679,0.246932,80994.0,80988.0,0.012347]
[1744294159002,0.221,80989.0,80984.0,0.259309]
[1744294159201,0.221,80989.0,80988.0,0.012347]
[1744294159407,1.27104,81001.0,81000.0,0.259258]
[1744294159607,0.012346,80993.0,80986.0,0.012347]
[1744294159818,0.012347,80986.0,80979.0,0.246975]
[1744294160196,0.246982,80978.0,80974.0,0.2473284]
[1744294160393,0.246989,80975.0,80974.0,0.0003364]
[1744294160597,0.480364,80980.0,80975.0,0.246988]
[1744294160846,0.22104,80980.0,80978.0,0.246977]
[1744294160980,0.22104,80980.0,80979.0,0.012348]
[1744294161181,0.012346,80996.0,80988.0,0.012347]
[1744294161418,0.246946,80990.0,80982.0,0.012348]
[1744294161624,0.22104,80993.0,80987.0,0.246952]
[1744294161877,0.22104,80993.0,80964.0,0.34]
[1744294162031,0.012348,80979.0,80972.0,0.259346]
[1744294162233,0.012348,80981.0,80975.0,0.246989]
[1744294162478,0.012349,80975.0,80960.0,0.012351]
[1744294162770,0.259331,80978.0,80958.0,0.0003364]
[1744294162771,0.246982,80978.0,80973.0,0.259679]
[1744294162974,0.22104,80975.0,80973.0,0.259679]
[1744294163152,0.22104,80975.0,80974.0,0.01310876]
[1744294163534,0.246961,80985.0,80974.0,0.01310876]
[1744294163741,0.34,80987.0,80980.0,0.259322]
[1744294163979,0.586961,80985.0,80980.0,0.246973]
[1744294164160,0.37985482,80987.0,80983.0,0.246963]
[1744294164357,0.22104,80989.0,80988.0,0.259297]
[1744294164738,0.24691,81002.0,80988.0,0.259297]
[1744294164739,0.012345,81004.0,80999.0,0.246916]
[1744294165231,0.22104,81000.0,80999.0,0.246916]
[1744294165608,0.22104,81000.0,80998.0,0.246918]
[1744294165810,0.22104,81000.0,80998.0,0.259263]
[1744294166029,0.22104,81000.0,80998.0,0.25968636]
[1744294166231,0.22104,81000.0,80999.0,0.012345]
[1744294166436,0.467954,81000.0,80998.0,0.00042336]
[1744294166617,0.13289882,80999.0,80998.0,0.00042336]
[1744294166818,0.22104,81000.0,80998.0,0.00042336]
[1744294167018,0.12055382,80999.0,80998.0,0.00042336]
[1744294167219,0.22104,81000.0,80998.0,0.00042336]
[1744294167467,0.22104,81000.0,80999.0,0.012345]
[1744294167765,0.22104,81000.0,80998.0,0.24734036]
[1744294168111,0.22104,81000.0,80998.0,0.25968536]
[1744294168311,0.246877,81012.0,81006.0,0.012344]
[1744294168514,0.246877,81012.0,81006.0,0.259237]
[1744294168515,0.24688,81011.0,81006.0,0.259237]
[1744294168759,0.246883,81010.0,81006.0,0.259237]
[1744294168933,0.246854,81020.0,81012.0,0.012343]
[1744294169137,0.012342,81019.0,81010.0,0.012344]
[1744294169449,0.012342,81019.0,81014.0,0.24687]
[1744294169450,0.246859,81018.0,81014.0,0.24687]
[1744294169784,0.246855,81020.0,81015.0,0.25921]
[1744294169945,0.012342,81019.0,81014.0,0.24687]
[1744294170128,0.012343,81016.0,81011.0,0.259223]
[1744294170467,0.012343,81016.0,79555.0,0.13]
[1744294170468,0.246905,81003.0,80998.0,0.01276836]
[1744294170615,0.012345,81003.0,80998.0,0.00042336]
[1744294170817,0.246915,81000.0,80998.0,0.00042336]
[1744294171046,0.012345,80999.0,80998.0,0.00042336]
[1744294171247,0.246914,81000.0,80998.0,0.00042336]
[1744294171452,0.246914,81001.0,80998.0,0.00042336]
[1744294171649,0.246914,81000.0,80998.0,0.00042336]
[1744294171888,0.012345,80999.0,80998.0,0.00042336]
[1744294172067,0.246914,81000.0,80998.0,0.00042336]
[1744294172402,0.246913,81001.0,80998.0,0.00042336]
[1744294172608,0.259258,81001.0,80998.0,0.00042336]
[1744294173017,0.2208,81017.0,81011.0,0.012344]
[1744294173155,0.012343,81012.0,81008.0,0.246887]
[1744294173349,0.012343,81013.0,81007.0,0.012344]
[1744294173557,0.012343,81016.0,81009.0,0.012344]
[1744294173753,0.012342,81021.0,81013.0,0.246871]
[1744294174066,0.012343,81017.0,81012.0,0.012343]
[1744294174294,0.012343,81014.0,81005.0,0.246898]
[1744294174490,0.012343,81014.0,81007.0,0.246891]
[1744294174491,0.246883,81010.0,81007.0,0.246891]
[1744294174799,0.246883,81010.0,81006.0,0.259238]
[1744294174992,0.259224,81011.0,81007.0,0.246891]
[1744294175307,0.259224,81011.0,81006.0,0.259238]
[1744294175308,0.233142,81018.0,81009.0,0.012344]
[1744294175508,0.233142,81018.0,81011.0,0.259221]
[1744294175509,0.246866,81016.0,81011.0,0.259221]
[1744294175809,0.001,81010.0,81007.0,0.246891]
[1744294176057,0.001,81010.0,81008.0,0.246888]
[1744294176258,0.259214,81014.0,81009.0,0.246886]
[1744294176478,0.012344,81009.0,80988.0,0.045]
[1744294176706,0.001,81018.0,81017.0,0.259204]
[1744294176895,0.001,81018.0,81017.0,0.37975782]
[1744294177657,0.0001683,81039.0,81029.0,0.599166]
[1744294177860,0.0001683,81039.0,81029.0,0.71971982]
[1744294178264,0.0001683,81039.0,81029.0,0.599166]
[1744294178811,0.0001683,81039.0,81023.0,0.25918]
[1744294178812,0.259148,81035.0,81025.0,0.012341]
[1744294178984,0.00029543,81030.0,81029.0,0.012341]
[1744294179142,0.00129543,81030.0,81029.0,0.012341]
[1744294179544,0.00029543,81030.0,81029.0,0.012341]
[1744294179746,0.00129543,81030.0,81029.0,0.012341]
[1744294181197,0.00029543,81030.0,81029.0,0.012341]
[1744294181524,0.01363643,81030.0,81025.0,0.259168]
[1744294181700,0.012342,81021.0,81014.0,0.012343]
[1744294181928,0.246844,81023.0,81020.0,0.246852]
[1744294182133,0.01363643,81030.0,81021.0,0.012342]
[1744294182252,0.26045943,81030.0,81025.0,0.246836]
[1744294182467,0.00129543,81030.0,81029.0,0.012341]
[1744294182669,0.00029543,81030.0,81029.0,0.47289482]
[1744294182868,0.00029543,81030.0,81029.0,0.352341]
[1744294184005,4.3e-07,81030.0,81029.0,0.48743567]
[1744294184511,0.00100043,81030.0,81029.0,0.48743567]
[1744294185056,4.3e-07,81030.0,81029.0,0.48743567]
[1744294185203,0.00100043,81030.0,81029.0,0.47289482]
[1744294185399,0.00100043,81030.0,81025.0,0.259168]
[1744294185400,0.259179,81025.0,81021.0,0.246847]
[1744294185656,0.01334143,81030.0,81023.0,0.246842]
[1744294185855,0.012341,81029.0,81020.0,0.012342]
[1744294186056,0.012341,81029.0,81009.0,0.4138]
[1744294186057,0.246871,81014.0,81009.0,0.012344]
[1744294186269,0.012343,81014.0,81009.0,0.259228]
[1744294186493,0.907939,81048.0,81013.0,0.246873]
[1744294186649,0.012341,81026.0,81021.0,0.246848]
[1744294186971,0.012341,81026.0,80990.0,0.005]
[1744294186972,0.012342,81023.0,81018.0,0.246858]
[1744294187114,0.246852,81020.0,81016.0,0.259207]
[1744294187341,0.012342,81022.0,81015.0,0.012343]
[1744294187543,0.4,81028.0,81025.0,0.012341]
[1744294187744,0.01234,81034.0,81026.0,0.259174]
[1744294187745,0.24682343,81030.0,81026.0,0.259174]
[1744294187946,0.24682343,81030.0,81029.0,0.246825]
[1744294187947,4.3e-07,81030.0,81029.0,0.246825]
[1744294188194,4.3e-07,81030.0,81029.0,0.259166]
[1744294188868,0.00100043,81030.0,81029.0,0.259166]
[1744294189555,0.00100043,81030.0,81028.0,0.259169]
[1744294189556,0.12155425,81030.0,81014.0,0.012343]
[1744294189819,0.012342,81020.0,81007.0,0.012344]
[1744294190000,0.246852,81020.0,81016.0,0.246864]
[1744294190174,0.246861,81017.0,81013.0,0.246873]
[1744294190375,0.36737982,81029.0,81015.0,0.012343]
[1744294190604,0.13289482,81029.0,81021.0,0.012342]
[1744294190761,0.13289482,81029.0,81019.0,0.012342]
[1744294190762,0.012341,81028.0,81019.0,0.012342]
[1744294190962,0.012341,81027.0,81020.0,0.012342]
[1744294191181,0.012342,81023.0,81019.0,0.246854]
[1744294191459,0.246828,81028.0,81022.0,0.012342]
[1744294191608,0.12055382,81028.0,81023.0,0.012342]
[1744294191812,4.3e-07,81030.0,81028.0,0.259166]
[1744294192012,4.3e-07,81030.0,81029.0,0.012341]
[1744294193258,4.043e-05,81030.0,81029.0,0.012341]
[1744294194314,4.043e-05,81030.0,81029.0,0.13536259]
[1744294194501,4.043e-05,81030.0,81029.0,0.13289482]
[1744294195260,4.043e-05,81030.0,81029.0,0.03532403]
[1744294195659,4.043e-05,81030.0,81029.0,0.15587785]
[1744294195916,4.043e-05,81030.0,81029.0,0.49587785]
[1744294197365,0.00104043,81030.0,81029.0,0.49587785]
[1744294197729,0.00104043,81030.0,81029.0,0.74270285]
[1744294198838,0.00104043,81030.0,81029.0,0.7572437]
[1744294199037,0.00104043,81030.0,81029.0,0.74270285]
[1744294199438,0.00104043,81030.0,81029.0,0.28214903]
[1744294199639,4.043e-05,81030.0,81029.0,0.28214903]
[1744294200228,0.00104043,81030.0,81029.0,0.02298303]
[1744294200425,0.38075725,81030.0,81029.0,0.02298303]
[1744294200664,0.37975725,81030.0,81029.0,0.02298303]
[1744294201057,0.38075725,81030.0,81029.0,0.02298303]
[1744294201665,0.012344,81008.0,80999.0,0.012345]
[1744294201826,0.012344,81008.0,80980.0,0.0003364]
[1744294201827,0.246968,80983.0,80980.0,0.0003364]
[1744294202070,0.012348,80981.0,80980.0,0.0003364]
[1744294202285,0.412348,80981.0,80980.0,0.0003364]
[1744294202542,0.4,80981.0,80980.0,0.0126844]
[1744294202735,0.34,81006.0,80987.0,0.012347]
[1744294202736,0.246933,80994.0,80987.0,0.012347]
[1744294202929,0.24694,80992.0,80988.0,0.246948]
[1744294203130,0.35333982,80993.0,80990.0,0.259291]
[1744294203131,0.22044,80993.0,80990.0,0.259291]
[1744294203533,0.246937,80992.0,80990.0,0.00042336]
[1744294203753,0.37984182,80991.0,80990.0,0.00042336]
[1744294203990,1.31671526,80991.0,80990.0,3.6e-07]
[1744294204122,0.259319,80981.0,80973.0,0.000337]
[1744294204306,0.37987282,80981.0,80973.0,0.000337]
[1744294204654,0.77987282,80981.0,80973.0,0.000337]
[1744294205365,0.53290182,80981.0,80973.0,0.000337]
[1744294206381,0.599338,80975.0,80973.0,0.000337]
[1744294206585,2.41983267,80975.0,80973.0,0.000337]
[1744294207554,2.40529182,80975.0,80973.0,0.000337]
[1744294208780,1.39155382,80975.0,80973.0,0.000337]
[1744294208942,1.65089182,80975.0,80973.0,0.000337]
[1744294209370,1.99089182,80975.0,80973.0,0.000337]
[1744294209755,1.99093182,80975.0,80973.0,0.000337]
[1744294209972,2.40533182,80975.0,80973.0,0.000337]
[1744294210174,2.41987267,80975.0,80973.0,0.000337]
[1744294210700,2.40533182,80975.0,80973.0,0.000337]
[1744294211142,1.67104,80975.0,80974.0,0.0126854]
[1744294211346,1.27104,80975.0,80974.0,0.0003364]
[1744294212003,1.27104,80975.0,80974.0,0.0126854]
[1744294212196,1.27104,80975.0,80974.0,0.0003364]
[1744294212399,1.283389,80975.0,80974.0,0.0003364]
[1744294212620,1.27104,80975.0,80974.0,0.0003364]
[1744294213043,1.283389,80975.0,80974.0,0.0003364]
[1744294213286,1.27104,80975.0,80974.0,0.0003364]
[1744294213423,1.27104,80975.0,80974.0,0.0126854]
[1744294213625,1.77136441,80975.0,80974.0,0.0003364]
[1744294214006,1.65093182,80975.0,80974.0,0.0003364]
[1744294214195,1.27104,80975.0,80974.0,0.0003364]
[1744294214397,1.283389,80975.0,80974.0,0.0003364]
[1744294214521,1.40394282,80975.0,80974.0,0.0003364]
[1744294215390,1.74394282,80975.0,80974.0,0.0003364]
[1744294215772,2.57288367,80975.0,80974.0,0.0003364]
[1744294215975,2.61968367,80975.0,80974.0,0.0003364]
[1744294217446,2.60514282,80975.0,80974.0,0.0003364]
[1744294217668,2.61968367,80975.0,80974.0,0.0003364]
[1744294218061,2.60514282,80975.0,80974.0,0.0003364]
[1744294218457,1.518029,80975.0,80974.0,0.0003364]
[1744294218789,1.27104,80975.0,80974.0,0.0003364]
[1744294218926,1.27104,80975.0,80974.0,0.0126854]
[1744294219130,1.27104,80975.0,80974.0,0.2596774]
[1744294219545,1.27104,80975.0,80974.0,0.0003364]
[1744294219747,1.27104,80975.0,80974.0,0.0126854]
[1744294220628,1.283389,80975.0,80974.0,0.0003364]
[1744294221034,1.67104,80975.0,80974.0,0.0003364]
[1744294221680,1.80394282,80975.0,80974.0,0.0003364]
[1744294221879,1.67104,80975.0,80974.0,0.0003364]
[1744294222375,1.683389,80975.0,80974.0,0.0003364]
[1744294222579,1.27104,80975.0,80974.0,0.0003364]
[1744294222817,1.283389,80975.0,80974.0,0.0003364]
[1744294222976,1.80394282,80975.0,80974.0,0.0003364]
[1744294223595,1.683389,80975.0,80974.0,0.0003364]
[1744294223803,2.67757257,80975.0,80974.0,0.0003364]
[1744294224124,2.67757257,80975.0,80973.0,4e-07]
[1744294224125,0.61388185,80974.0,80973.0,4e-07]
[1744294224265,0.599341,80974.0,80973.0,4e-07]
[1744294224620,0.71989482,80974.0,80973.0,4e-07]
[1744294224815,0.599367,80966.0,80965.0,0.000297]
[1744294224995,1.14886167,80966.0,80965.0,0.000297]
[1744294225225,1.14886167,80966.0,80965.0,1e-06]
[1744294225394,0.599396,80957.0,80956.0,8e-07]
[1744294225587,1.34058982,80957.0,80956.0,8e-07]
[1744294226124,1.34058982,80957.0,80956.0,0.0001275]
[1744294226832,0.4,80957.0,80956.0,0.0001275]
[1744294227033,0.247036,80960.0,80956.0,0.0124795]
[1744294227191,0.259382,80962.0,80957.0,0.012352]
[1744294227401,0.247039,80959.0,80956.0,0.0124795]
[1744294227596,0.259387,80960.0,80956.0,0.0001275]
[1744294227983,0.247036,80960.0,80957.0,0.247044]
[1744294228213,0.247037,80960.0,80957.0,0.247044]
[1744294228609,0.247038,80959.0,80956.0,0.0001275]
[1744294228818,0.012352,80957.0,80956.0,0.0001275]
[1744294229195,0.03480978,80957.0,80956.0,0.0001275]
[1744294229578,0.012352,80957.0,80956.0,0.0001275]
[1744294230832,0.247014,80967.0,80964.0,0.247022]
[1744294231031,0.247042,80958.0,80956.0,0.0001275]
[1744294231230,0.012352,80957.0,80956.0,0.0001275]
[1744294231580,0.247043,80958.0,80956.0,0.0001275]
[1744294231780,0.247042,80959.0,80956.0,0.0001275]
[1744294232096,0.259393,80959.0,80956.0,0.0001275]
[1744294232257,0.012352,80957.0,80956.0,0.0001275]
[1744294232482,0.25939,80959.0,80956.0,0.0001275]
[1744294232654,0.247044,80958.0,80956.0,0.0001275]
[1744294232835,0.012352,80957.0,80956.0,0.0001275]
[1744294233034,0.247042,80961.0,80956.0,0.0001275]
[1744294233035,0.24703,80962.0,80956.0,0.0001275]
[1744294233236,0.247034,80961.0,80956.0,0.2471735]
[1744294233476,0.247042,80959.0,80956.0,0.0001275]
[1744294233684,0.012352,80957.0,80956.0,0.0001275]
[1744294234256,0.259396,80957.0,80956.0,0.0001275]
[1744294237174,0.247029,80962.0,80957.0,0.247041]
[1744294237373,0.25938,80962.0,80957.0,0.259393]
[1744294237625,0.247035,80960.0,80956.0,0.0001275]
[1744294237833,0.247044,80957.0,80956.0,0.0001275]
[1744294237985,0.259396,80957.0,80956.0,0.0001275]
[1744294238412,0.012351,80959.0,80956.0,0.0001275]
[1744294238610,0.259396,80957.0,80956.0,0.0001275]
[1744294238779,0.259388,80960.0,80956.0,0.0001275]
[1744294238979,1.27104,80975.0,80956.0,0.00259795]
[1744294239310,0.01235,80967.0,80962.0,0.247028]
[1744294239511,0.01235,80967.0,80957.0,0.012352]
[1744294239512,0.259396,80957.0,80954.0,0.0003364]
[1744294240082,0.012351,80961.0,80954.0,0.0003364]
[1744294240083,0.012351,80959.0,80954.0,0.0003364]
[1744294240468,0.259396,80957.0,80954.0,0.0003364]
[1744294241675,0.01235,80966.0,80957.0,0.012352]
[1744294241872,0.012351,80963.0,80957.0,0.259394]
[1744294242176,0.012351,80961.0,80956.0,0.2471745]
[1744294242372,0.259383,80961.0,80958.0,0.24704]
[1744294242575,0.247028,80963.0,80960.0,0.247035]
[1744294242994,0.247028,80963.0,80958.0,0.259393]
[1744294243200,0.247031,80962.0,80959.0,0.247038]
[1744294243397,0.247033,80961.0,80958.0,0.259393]
[1744294243808,0.247031,80962.0,80958.0,0.259393]
[1744294243982,0.247031,80962.0,80956.0,0.0001275]
[1744294243983,0.247044,80957.0,80956.0,0.0001275]
[1744294244189,0.232711,80961.0,80956.0,0.0001275]